{"text_format":"3","workbook":"xlsx","n_sheets":2,"sheets":["Programación del empleado","Configuración"],"not_rendered":{"defined_names":21},"read":"whole","date_system":"1900"}

{"sheet":"Programación del empleado","index":0,"n_rows":296,"n_cols":21,"rows_kept":296,"merged":[[6,1,6,9],[66,1,66,9],[126,1,126,9],[186,1,186,9],[246,1,246,9]]}
["Programación de los turnos de los empleados"]
[]
[null,"TOTAL:",null,{"$f":"SUM(4:4)","v":{"v":56,"d":"56.00"}}]
[null,"HORAS:",null,{"$f":"TotalHorasDíaEmpleado","v":8},8,8,8,8,8,8,{"v":0,"d":"0.00"},{"v":0,"d":"0.00"},{"v":0,"d":"0.00"},{"v":0,"d":"0.00"},{"v":0,"d":"0.00"},{"v":0,"d":"0.00"},{"v":0,"d":"0.00"},{"v":0,"d":"0.00"},{"v":0,"d":"0.00"},{"v":0,"d":"0.00"},{"v":0,"d":"0.00"}]
[null,"EMPLEADO:",null,"Carvallo, C.","García, C.","Junca, D.","García, C.","Cuesta, M.","Delgado, A.","Isla, J."]
[]
[null,"2012-07-16T09:00:00"]
[null,{"$f":"B7","v":41106.375},{"$nulls":5},"Vacaciones"]
[null,{"$f":"PantallaPeríodos","v":":15"},null,"Recepción",{"$nulls":3},"Vacaciones"]
[null,":30",null,"Recepción",{"$nulls":3},"Vacaciones"]
[null,":45",null,"Recepción","Supervisor",null,"Atención al cliente","Vacaciones"]
[null,"10:00",null,"Recepción","Supervisor",null,"Atención al cliente","Vacaciones"]
[null,":15",null,"Recepción","Supervisor",null,"Atención al cliente","Vacaciones"]
[null,":30",null,"Recepción","Supervisor",null,"Atención al cliente","Vacaciones","Contabilidad"]
[null,":45",null,"Recepción","Supervisor",null,"Atención al cliente","Vacaciones","Contabilidad","Conserje"]
[null,"11:00",null,"Recepción","Supervisor",null,"Atención al cliente","Vacaciones","Contabilidad","Conserje"]
[null,":15",null,"Recepción","Supervisor","Guía","Atención al cliente","Vacaciones","Contabilidad","Conserje"]
[null,":30",null,"Recepción","Pausa","Guía","Atención al cliente","Vacaciones","Contabilidad","Conserje"]
[null,":45",null,"Comida","Supervisor","Guía","Atención al cliente","Vacaciones","Contabilidad","Conserje"]
[null,"12:00",null,"Comida","Supervisor","Guía","Atención al cliente","Vacaciones","Contabilidad","Conserje"]
[null,":15",null,"Recepción","Supervisor","Guía","Atención al cliente","Vacaciones","Pausa","Conserje"]
[null,":30",null,"Recepción","Supervisor","Pausa","Atención al cliente","Vacaciones","Teléfonos","Pausa"]
[null,":45",null,"Recepción","Supervisor","Guía","Atención al cliente","Vacaciones","Teléfonos","Conserje"]
[null,"13:00",null,"Recepción","Supervisor","Guía","Atención al cliente","Vacaciones","Teléfonos","Conserje"]
[null,":15",null,"Recepción","Supervisor","Guía","Comida","Vacaciones","Teléfonos","Conserje"]
[null,":30",null,null,"Supervisor","Guía","Comida","Vacaciones","Teléfonos","Conserje"]
[null,":45",null,null,"Supervisor","Guía","Comida","Vacaciones","Comida","Conserje"]
[null,"14:00",null,"Cajero","Comida","Guía","Comida","Vacaciones","Comida","Conserje"]
[null,":15",null,"Cajero","Comida","Guía","Atención al cliente","Vacaciones","Teléfonos","Conserje"]
[null,":30",null,"Cajero","Comida","Comida","Atención al cliente","Vacaciones","Teléfonos","Comida"]
[null,":45",null,"Cajero","Comida","Comida","Atención al cliente","Vacaciones","Teléfonos","Comida"]
[null,"15:00",null,"Cajero","Seguridad","Comida","Atención al cliente","Vacaciones","Teléfonos","Comida"]
[null,":15",null,"Cajero","Seguridad","Comida","Atención al cliente","Vacaciones","Teléfonos","Comida"]
[null,":30",null,"Cajero","Seguridad","Guía","Atención al cliente","Vacaciones","Teléfonos","Cerrar"]
[null,":45",null,"Cajero","Seguridad","Guía","Atención al cliente","Vacaciones","Teléfonos","Cerrar"]
[null,"16:00",null,"Cajero","Seguridad","Guía","Atención al cliente","Vacaciones","Pausa","Cerrar"]
[null,":15",null,"Pausa","Seguridad","Guía","Pausa","Vacaciones","Teléfonos","Cerrar"]
[null,":30",null,"Cajero","Seguridad","Guía","Atención al cliente","Vacaciones","Teléfonos","Cerrar"]
[null,":45",null,"Cajero","Seguridad","Guía","Atención al cliente","Vacaciones","Teléfonos","Cerrar"]
[null,"17:00",null,"Cajero","Seguridad","Guía","Atención al cliente",null,"Teléfonos","Cerrar"]
[null,":15",null,"Cajero","Seguridad","Guía","Atención al cliente",null,"Teléfonos","Cerrar"]
[null,":30",null,"Cajero","Seguridad","Guía","Atención al cliente",null,"Teléfonos","Cerrar"]
[null,":45",null,"Cajero","Seguridad","Guía","Atención al cliente",null,"Teléfonos","Cerrar"]
[null,"18:00",null,"Cajero","Seguridad","Guía","Atención al cliente",null,"Teléfonos","Cerrar"]
[null,":15",null,"Cajero","Seguridad","Guía","Atención al cliente",null,"Teléfonos","Cerrar"]
[null,":30",null,null,"Seguridad","Guía","Atención al cliente",null,"Teléfonos","Cerrar"]
[null,":45",null,null,"Seguridad","Pausa","Atención al cliente",null,"Teléfonos","Pausa"]
[null,"19:00",{"$nulls":3},"Guía",null,null,"Teléfonos","Cerrar"]
[null,":15",{"$nulls":3},"Guía",null,null,"Teléfonos","Cerrar"]
[null,":30",{"$nulls":3},"Guía",{"$nulls":3},"Cerrar"]
[null,":45",{"$nulls":3},"Guía",{"$nulls":3},"Cerrar"]
[null,"20:00",{"$nulls":3},"Guía",{"$nulls":3},"Cerrar"]
[null,":15",{"$nulls":3},"Guía"]
[null,":30",{"$nulls":3},"Guía"]
[null,":45"]
[null,"21:00"]
[]
[]
[]
[]
["Programación del empleado"]
[]
[null,"TOTAL:",null,{"$f":"SUM(64:64)","v":{"v":56,"d":"56.00"}}]
[null,"HORAS:",null,{"$f":"TotalHorasDíaEmpleado","v":8},8,8,8,8,8,8,{"v":0,"d":"0.00"},{"v":0,"d":"0.00"},{"v":0,"d":"0.00"},{"v":0,"d":"0.00"},{"v":0,"d":"0.00"},{"v":0,"d":"0.00"},{"v":0,"d":"0.00"},{"v":0,"d":"0.00"},{"v":0,"d":"0.00"},{"v":0,"d":"0.00"},{"v":0,"d":"0.00"}]
[null,"EMPLEADO:",null,"Carvallo, C.","García, C.","Junca, D.","Grilo, C.","Cuesta, M.","Delgado, A.","Isla, J."]
[]
[null,{"$f":"B7+1","v":"2012-07-17T09:00:00"}]
[null,{"$f":"B67","v":41107.375},{"$nulls":5},"Vacaciones"]
[null,{"$f":"PantallaPeríodos","v":":15"},null,"Recepción",{"$nulls":3},"Vacaciones"]
[null,":30",null,"Recepción",{"$nulls":3},"Vacaciones"]
[null,":45",null,"Recepción","Supervisor",null,"Atención al cliente","Vacaciones"]
[null,"1:00",null,"Recepción","Supervisor",null,"Atención al cliente","Vacaciones"]
[null,":15",null,"Recepción","Supervisor",null,"Atención al cliente","Vacaciones"]
[null,":30",null,"Recepción","Supervisor",null,"Atención al cliente","Vacaciones","Contabilidad"]
[null,":45",null,"Recepción","Supervisor",null,"Atención al cliente","Vacaciones","Contabilidad","Conserje"]
[null,"2:00",null,"Recepción","Supervisor",null,"Atención al cliente","Vacaciones","Contabilidad","Conserje"]
[null,":15",null,"Recepción","Supervisor","Guía","Atención al cliente","Vacaciones","Contabilidad","Conserje"]
[null,":30",null,"Recepción","Pausa","Guía","Atención al cliente","Vacaciones","Contabilidad","Conserje"]
[null,":45",null,"Comida","Supervisor","Guía","Atención al cliente","Vacaciones","Contabilidad","Conserje"]
[null,"3:00",null,"Comida","Supervisor","Guía","Atención al cliente","Vacaciones","Contabilidad","Conserje"]
[null,":15",null,"Recepción","Supervisor","Guía","Atención al cliente","Vacaciones","Pausa","Conserje"]
[null,":30",null,"Recepción","Supervisor","Pausa","Atención al cliente","Vacaciones","Teléfonos","Pausa"]
[null,":45",null,"Recepción","Supervisor","Guía","Atención al cliente","Vacaciones","Teléfonos","Conserje"]
[null,"4:00",null,"Recepción","Supervisor","Guía","Atención al cliente","Vacaciones","Teléfonos","Conserje"]
[null,":15",null,"Recepción","Supervisor","Guía","Comida","Vacaciones","Teléfonos","Conserje"]
[null,":30",null,null,"Supervisor","Guía","Comida","Vacaciones","Teléfonos","Conserje"]
[null,":45",null,null,"Supervisor","Guía","Comida","Vacaciones","Comida","Conserje"]
[null,"5:00",null,"Cajero","Comida","Guía","Comida","Vacaciones","Comida","Conserje"]
[null,":15",null,"Cajero","Comida","Guía","Atención al cliente","Vacaciones","Teléfonos","Conserje"]
[null,":30",null,"Cajero","Comida","Comida","Atención al cliente","Vacaciones","Teléfonos","Comida"]
[null,":45",null,"Cajero","Comida","Comida","Atención al cliente","Vacaciones","Teléfonos","Comida"]
[null,"6:00",null,"Cajero","Seguridad","Comida","Atención al cliente","Vacaciones","Teléfonos","Comida"]
[null,":15",null,"Cajero","Seguridad","Comida","Atención al cliente","Vacaciones","Teléfonos","Comida"]
[null,":30",null,"Cajero","Seguridad","Guía","Atención al cliente","Vacaciones","Teléfonos","Cerrar"]
[null,":45",null,"Cajero","Seguridad","Guía","Atención al cliente","Vacaciones","Teléfonos","Cerrar"]
[null,"7:00",null,"Cajero","Seguridad","Guía","Atención al cliente","Vacaciones","Pausa","Cerrar"]
[null,":15",null,"Pausa","Seguridad","Guía","Pausa","Vacaciones","Teléfonos","Cerrar"]
[null,":30",null,"Cajero","Seguridad","Guía","Atención al cliente","Vacaciones","Teléfonos","Cerrar"]
[null,":45",null,"Cajero","Seguridad","Guía","Atención al cliente","Vacaciones","Teléfonos","Cerrar"]
[null,"8:00",null,"Cajero","Seguridad","Guía","Atención al cliente",null,"Teléfonos","Cerrar"]
[null,":15",null,"Cajero","Seguridad","Guía","Atención al cliente",null,"Teléfonos","Cerrar"]
[null,":30",null,"Cajero","Seguridad","Guía","Atención al cliente",null,"Teléfonos","Cerrar"]
[null,":45",null,"Cajero","Seguridad","Guía","Atención al cliente",null,"Teléfonos","Cerrar"]
[null,"9:00",null,"Cajero","Seguridad","Guía","Atención al cliente",null,"Teléfonos","Cerrar"]
[null,":15",null,"Cajero","Seguridad","Guía","Atención al cliente",null,"Teléfonos","Cerrar"]
[null,":30",null,null,"Seguridad","Guía","Atención al cliente",null,"Teléfonos","Cerrar"]
[null,":45",null,null,"Seguridad","Pausa","Atención al cliente",null,"Teléfonos","Pausa"]
[null,"10:00",{"$nulls":3},"Guía",null,null,"Teléfonos","Cerrar"]
[null,":15",{"$nulls":3},"Guía",null,null,"Teléfonos","Cerrar"]
[null,":30",{"$nulls":3},"Guía",{"$nulls":3},"Cerrar"]
[null,":45",{"$nulls":3},"Guía",{"$nulls":3},"Cerrar"]
[null,"11:00",{"$nulls":3},"Guía",{"$nulls":3},"Cerrar"]
[null,":15",{"$nulls":3},"Guía"]
[null,":30",{"$nulls":3},"Guía"]
[null,":45"]
[null,"12:00"]
[]
[]
[]
[]
["Programación del empleado"]
[]
[null,"TOTAL:",null,{"$f":"SUM(124:124)","v":{"v":56,"d":"56.00"}}]
[null,"HORAS:",null,{"$f":"TotalHorasDíaEmpleado","v":8},8,8,8,8,8,8,{"v":0,"d":"0.00"},{"v":0,"d":"0.00"},{"v":0,"d":"0.00"},{"v":0,"d":"0.00"},{"v":0,"d":"0.00"},{"v":0,"d":"0.00"},{"v":0,"d":"0.00"},{"v":0,"d":"0.00"},{"v":0,"d":"0.00"},{"v":0,"d":"0.00"},{"v":0,"d":"0.00"}]
[null,"EMPLEADO:",null,"Carvallo, C.","García, C.","Junca, D.","Grilo, C.","Cuesta, M.","Delgado, A.","Isla, J."]
[]
[null,{"$f":"B67+1","v":"2012-07-18T09:00:00"}]
[null,{"$f":"B127","v":41108.375},{"$nulls":5},"Vacaciones"]
[null,{"$f":"PantallaPeríodos","v":":15"},null,"Recepción",{"$nulls":3},"Vacaciones"]
[null,":30",null,"Recepción",{"$nulls":3},"Vacaciones"]
[null,":45",null,"Recepción","Supervisor",null,"Atención al cliente","Vacaciones"]
[null,"16:00",null,"Recepción","Supervisor",null,"Atención al cliente","Vacaciones"]
[null,":15",null,"Recepción","Supervisor",null,"Atención al cliente","Vacaciones"]
[null,":30",null,"Recepción","Supervisor",null,"Atención al cliente","Vacaciones","Contabilidad"]
[null,":45",null,"Recepción","Supervisor",null,"Atención al cliente","Vacaciones","Contabilidad","Conserje"]
[null,"17:00",null,"Recepción","Supervisor",null,"Atención al cliente","Vacaciones","Contabilidad","Conserje"]
[null,":15",null,"Recepción","Supervisor","Guía","Atención al cliente","Vacaciones","Contabilidad","Conserje"]
[null,":30",null,"Recepción","Pausa","Guía","Atención al cliente","Vacaciones","Contabilidad","Conserje"]
[null,":45",null,"Comida","Supervisor","Guía","Atención al cliente","Vacaciones","Contabilidad","Conserje"]
[null,"18:00",null,"Comida","Supervisor","Guía","Atención al cliente","Vacaciones","Contabilidad","Conserje"]
[null,":15",null,"Recepción","Supervisor","Guía","Atención al cliente","Vacaciones","Pausa","Conserje"]
[null,":30",null,"Recepción","Supervisor","Pausa","Atención al cliente","Vacaciones","Teléfonos","Pausa"]
[null,":45",null,"Recepción","Supervisor","Guía","Atención al cliente","Vacaciones","Teléfonos","Conserje"]
[null,"19:00",null,"Recepción","Supervisor","Guía","Atención al cliente","Vacaciones","Teléfonos","Conserje"]
[null,":15",null,"Recepción","Supervisor","Guía","Comida","Vacaciones","Teléfonos","Conserje"]
[null,":30",null,null,"Supervisor","Guía","Comida","Vacaciones","Teléfonos","Conserje"]
[null,":45",null,null,"Supervisor","Guía","Comida","Vacaciones","Comida","Conserje"]
[null,"20:00",null,"Cajero","Comida","Guía","Comida","Vacaciones","Comida","Conserje"]
[null,":15",null,"Cajero","Comida","Guía","Atención al cliente","Vacaciones","Teléfonos","Conserje"]
[null,":30",null,"Cajero","Comida","Comida","Atención al cliente","Vacaciones","Teléfonos","Comida"]
[null,":45",null,"Cajero","Comida","Comida","Atención al cliente","Vacaciones","Teléfonos","Comida"]
[null,"21:00",null,"Cajero","Seguridad","Comida","Atención al cliente","Vacaciones","Teléfonos","Comida"]
[null,":15",null,"Cajero","Seguridad","Comida","Atención al cliente","Vacaciones","Teléfonos","Comida"]
[null,":30",null,"Cajero","Seguridad","Guía","Atención al cliente","Vacaciones","Teléfonos","Cerrar"]
[null,":45",null,"Cajero","Seguridad","Guía","Atención al cliente","Vacaciones","Teléfonos","Cerrar"]
[null,"22:00",null,"Cajero","Seguridad","Guía","Atención al cliente","Vacaciones","Pausa","Cerrar"]
[null,":15",null,"Pausa","Seguridad","Guía","Pausa","Vacaciones","Teléfonos","Cerrar"]
[null,":30",null,"Cajero","Seguridad","Guía","Atención al cliente","Vacaciones","Teléfonos","Cerrar"]
[null,":45",null,"Cajero","Seguridad","Guía","Atención al cliente","Vacaciones","Teléfonos","Cerrar"]
[null,"23:00",null,"Cajero","Seguridad","Guía","Atención al cliente",null,"Teléfonos","Cerrar"]
[null,":15",null,"Cajero","Seguridad","Guía","Atención al cliente",null,"Teléfonos","Cerrar"]
[null,":30",null,"Cajero","Seguridad","Guía","Atención al cliente",null,"Teléfonos","Cerrar"]
[null,":45",null,"Cajero","Seguridad","Guía","Atención al cliente",null,"Teléfonos","Cerrar"]
[null,"0:00",null,"Cajero","Seguridad","Guía","Atención al cliente",null,"Teléfonos","Cerrar"]
[null,":15",null,"Cajero","Seguridad","Guía","Atención al cliente",null,"Teléfonos","Cerrar"]
[null,":30",null,null,"Seguridad","Guía","Atención al cliente",null,"Teléfonos","Cerrar"]
[null,":45",null,null,"Seguridad","Pausa","Atención al cliente",null,"Teléfonos","Pausa"]
[null,"1:00",{"$nulls":3},"Guía",null,null,"Teléfonos","Cerrar"]
[null,":15",{"$nulls":3},"Guía",null,null,"Teléfonos","Cerrar"]
[null,":30",{"$nulls":3},"Guía",{"$nulls":3},"Cerrar"]
[null,":45",{"$nulls":3},"Guía",{"$nulls":3},"Cerrar"]
[null,"2:00",{"$nulls":3},"Guía",{"$nulls":3},"Cerrar"]
[null,":15",{"$nulls":3},"Guía"]
[null,":30",{"$nulls":3},"Guía"]
[null,":45"]
[null,"3:00"]
[]
[]
[]
[]
["Programación del empleado"]
[]
[null,"TOTAL:",null,{"$f":"SUM(184:184)","v":{"v":56,"d":"56.00"}}]
[null,"HORAS:",null,{"$f":"TotalHorasDíaEmpleado","v":8},8,8,8,8,8,8,{"v":0,"d":"0.00"},{"v":0,"d":"0.00"},{"v":0,"d":"0.00"},{"v":0,"d":"0.00"},{"v":0,"d":"0.00"},{"v":0,"d":"0.00"},{"v":0,"d":"0.00"},{"v":0,"d":"0.00"},{"v":0,"d":"0.00"},{"v":0,"d":"0.00"},{"v":0,"d":"0.00"}]
[null,"EMPLEADO:",null,"Carvallo, C.","García, C.","Junca, D.","Grilo, C.","Cuesta, M.","Delgado, A.","Isla, J."]
[]
[null,{"$f":"B127+1","v":"2012-07-19T09:00:00"}]
[null,{"$f":"B187","v":41109.375},{"$nulls":5},"Vacaciones"]
[null,{"$f":"PantallaPeríodos","v":":15"},null,"Recepción",{"$nulls":3},"Vacaciones"]
[null,":30",null,"Recepción",{"$nulls":3},"Vacaciones"]
[null,":45",null,"Recepción","Supervisor",null,"Atención al cliente","Vacaciones"]
[null,"7:00",null,"Recepción","Supervisor",null,"Atención al cliente","Vacaciones"]
[null,":15",null,"Recepción","Supervisor",null,"Atención al cliente","Vacaciones"]
[null,":30",null,"Recepción","Supervisor",null,"Atención al cliente","Vacaciones","Contabilidad"]
[null,":45",null,"Recepción","Supervisor",null,"Atención al cliente","Vacaciones","Contabilidad","Conserje"]
[null,"8:00",null,"Recepción","Supervisor",null,"Atención al cliente","Vacaciones","Contabilidad","Conserje"]
[null,":15",null,"Recepción","Supervisor","Guía","Atención al cliente","Vacaciones","Contabilidad","Conserje"]
[null,":30",null,"Recepción","Pausa","Guía","Atención al cliente","Vacaciones","Contabilidad","Conserje"]
[null,":45",null,"Comida","Supervisor","Guía","Atención al cliente","Vacaciones","Contabilidad","Conserje"]
[null,"9:00",null,"Comida","Supervisor","Guía","Atención al cliente","Vacaciones","Contabilidad","Conserje"]
[null,":15",null,"Recepción","Supervisor","Guía","Atención al cliente","Vacaciones","Pausa","Conserje"]
[null,":30",null,"Recepción","Supervisor","Pausa","Atención al cliente","Vacaciones","Teléfonos","Pausa"]
[null,":45",null,"Recepción","Supervisor","Guía","Atención al cliente","Vacaciones","Teléfonos","Conserje"]
[null,"10:00",null,"Recepción","Supervisor","Guía","Atención al cliente","Vacaciones","Teléfonos","Conserje"]
[null,":15",null,"Recepción","Supervisor","Guía","Comida","Vacaciones","Teléfonos","Conserje"]
[null,":30",null,null,"Supervisor","Guía","Comida","Vacaciones","Teléfonos","Conserje"]
[null,":45",null,null,"Supervisor","Guía","Comida","Vacaciones","Comida","Conserje"]
[null,"11:00",null,"Cajero","Comida","Guía","Comida","Vacaciones","Comida","Conserje"]
[null,":15",null,"Cajero","Comida","Guía","Atención al cliente","Vacaciones","Teléfonos","Conserje"]
[null,":30",null,"Cajero","Comida","Comida","Atención al cliente","Vacaciones","Teléfonos","Comida"]
[null,":45",null,"Cajero","Comida","Comida","Atención al cliente","Vacaciones","Teléfonos","Comida"]
[null,"12:00",null,"Cajero","Seguridad","Comida","Atención al cliente","Vacaciones","Teléfonos","Comida"]
[null,":15",null,"Cajero","Seguridad","Comida","Atención al cliente","Vacaciones","Teléfonos","Comida"]
[null,":30",null,"Cajero","Seguridad","Guía","Atención al cliente","Vacaciones","Teléfonos","Cerrar"]
[null,":45",null,"Cajero","Seguridad","Guía","Atención al cliente","Vacaciones","Teléfonos","Cerrar"]
[null,"13:00",null,"Cajero","Seguridad","Guía","Atención al cliente","Vacaciones","Pausa","Cerrar"]
[null,":15",null,"Pausa","Seguridad","Guía","Pausa","Vacaciones","Teléfonos","Cerrar"]
[null,":30",null,"Cajero","Seguridad","Guía","Atención al cliente","Vacaciones","Teléfonos","Cerrar"]
[null,":45",null,"Cajero","Seguridad","Guía","Atención al cliente","Vacaciones","Teléfonos","Cerrar"]
[null,"14:00",null,"Cajero","Seguridad","Guía","Atención al cliente",null,"Teléfonos","Cerrar"]
[null,":15",null,"Cajero","Seguridad","Guía","Atención al cliente",null,"Teléfonos","Cerrar"]
[null,":30",null,"Cajero","Seguridad","Guía","Atención al cliente",null,"Teléfonos","Cerrar"]
[null,":45",null,"Cajero","Seguridad","Guía","Atención al cliente",null,"Teléfonos","Cerrar"]
[null,"15:00",null,"Cajero","Seguridad","Guía","Atención al cliente",null,"Teléfonos","Cerrar"]
[null,":15",null,"Cajero","Seguridad","Guía","Atención al cliente",null,"Teléfonos","Cerrar"]
[null,":30",null,null,"Seguridad","Guía","Atención al cliente",null,"Teléfonos","Cerrar"]
[null,":45",null,null,"Seguridad","Pausa","Atención al cliente",null,"Teléfonos","Pausa"]
[null,"16:00",{"$nulls":3},"Guía",null,null,"Teléfonos","Cerrar"]
[null,":15",{"$nulls":3},"Guía",null,null,"Teléfonos","Cerrar"]
[null,":30",{"$nulls":3},"Guía",{"$nulls":3},"Cerrar"]
[null,":45",{"$nulls":3},"Guía",{"$nulls":3},"Cerrar"]
[null,"17:00",{"$nulls":3},"Guía",{"$nulls":3},"Cerrar"]
[null,":15",{"$nulls":3},"Guía"]
[null,":30",{"$nulls":3},"Guía"]
[null,":45"]
[null,"18:00"]
[]
[]
[]
[]
["Programación del empleado"]
[]
[null,"TOTAL:",null,{"$f":"SUM(244:244)","v":{"v":56,"d":"56.00"}}]
[null,"HORAS:",null,{"$f":"TotalHorasDíaEmpleado","v":8},8,8,8,8,8,8,{"v":0,"d":"0.00"},{"v":0,"d":"0.00"},{"v":0,"d":"0.00"},{"v":0,"d":"0.00"},{"v":0,"d":"0.00"},{"v":0,"d":"0.00"},{"v":0,"d":"0.00"},{"v":0,"d":"0.00"},{"v":0,"d":"0.00"},{"v":0,"d":"0.00"},{"v":0,"d":"0.00"}]
[null,"EMPLEADO:",null,"Carvallo, C.","García, C.","Junca, D.","Grilo, C.","Cuesta, M.","Delgado, A.","Isla, J."]
[]
[null,{"$f":"B187+1","v":"2012-07-20T09:00:00"}]
[null,{"$f":"B247","v":41110.375},{"$nulls":5},"Vacaciones"]
[null,{"$f":"PantallaPeríodos","v":":15"},null,"Recepción",{"$nulls":3},"Vacaciones"]
[null,":30",null,"Recepción",{"$nulls":3},"Vacaciones"]
[null,":45",null,"Recepción","Supervisor",null,"Atención al cliente","Vacaciones"]
[null,"22:00",null,"Recepción","Supervisor",null,"Atención al cliente","Vacaciones"]
[null,":15",null,"Recepción","Supervisor",null,"Atención al cliente","Vacaciones"]
[null,":30",null,"Recepción","Supervisor",null,"Atención al cliente","Vacaciones","Contabilidad"]
[null,":45",null,"Recepción","Supervisor",null,"Atención al cliente","Vacaciones","Contabilidad","Conserje"]
[null,"23:00",null,"Recepción","Supervisor",null,"Atención al cliente","Vacaciones","Contabilidad","Conserje"]
[null,":15",null,"Recepción","Supervisor","Guía","Atención al cliente","Vacaciones","Contabilidad","Conserje"]
[null,":30",null,"Recepción","Pausa","Guía","Atención al cliente","Vacaciones","Contabilidad","Conserje"]
[null,":45",null,"Comida","Supervisor","Guía","Atención al cliente","Vacaciones","Contabilidad","Conserje"]
[null,"0:00",null,"Comida","Supervisor","Guía","Atención al cliente","Vacaciones","Contabilidad","Conserje"]
[null,":15",null,"Recepción","Supervisor","Guía","Atención al cliente","Vacaciones","Pausa","Conserje"]
[null,":30",null,"Recepción","Supervisor","Pausa","Atención al cliente","Vacaciones","Teléfonos","Pausa"]
[null,":45",null,"Recepción","Supervisor","Guía","Atención al cliente","Vacaciones","Teléfonos","Conserje"]
[null,"1:00",null,"Recepción","Supervisor","Guía","Atención al cliente","Vacaciones","Teléfonos","Conserje"]
[null,":15",null,"Recepción","Supervisor","Guía","Comida","Vacaciones","Teléfonos","Conserje"]
[null,":30",null,null,"Supervisor","Guía","Comida","Vacaciones","Teléfonos","Conserje"]
[null,":45",null,null,"Supervisor","Guía","Comida","Vacaciones","Comida","Conserje"]
[null,"2:00",null,"Cajero","Comida","Guía","Comida","Vacaciones","Comida","Conserje"]
[null,":15",null,"Cajero","Comida","Guía","Atención al cliente","Vacaciones","Teléfonos","Conserje"]
[null,":30",null,"Cajero","Comida","Comida","Atención al cliente","Vacaciones","Teléfonos","Comida"]
[null,":45",null,"Cajero","Comida","Comida","Atención al cliente","Vacaciones","Teléfonos","Comida"]
[null,"3:00",null,"Cajero","Seguridad","Comida","Atención al cliente","Vacaciones","Teléfonos","Comida"]
[null,":15",null,"Cajero","Seguridad","Comida","Atención al cliente","Vacaciones","Teléfonos","Comida"]
[null,":30",null,"Cajero","Seguridad","Guía","Atención al cliente","Vacaciones","Teléfonos","Cerrar"]
[null,":45",null,"Cajero","Seguridad","Guía","Atención al cliente","Vacaciones","Teléfonos","Cerrar"]
[null,"4:00",null,"Cajero","Seguridad","Guía","Atención al cliente","Vacaciones","Pausa","Cerrar"]
[null,":15",null,"Pausa","Seguridad","Guía","Pausa","Vacaciones","Teléfonos","Cerrar"]
[null,":30",null,"Cajero","Seguridad","Guía","Atención al cliente","Vacaciones","Teléfonos","Cerrar"]
[null,":45",null,"Cajero","Seguridad","Guía","Atención al cliente","Vacaciones","Teléfonos","Cerrar"]
[null,"5:00",null,"Cajero","Seguridad","Guía","Atención al cliente",null,"Teléfonos","Cerrar"]
[null,":15",null,"Cajero","Seguridad","Guía","Atención al cliente",null,"Teléfonos","Cerrar"]
[null,":30",null,"Cajero","Seguridad","Guía","Atención al cliente",null,"Teléfonos","Cerrar"]
[null,":45",null,"Cajero","Seguridad","Guía","Atención al cliente",null,"Teléfonos","Cerrar"]
[null,"6:00",null,"Cajero","Seguridad","Guía","Atención al cliente",null,"Teléfonos","Cerrar"]
[null,":15",null,"Cajero","Seguridad","Guía","Atención al cliente",null,"Teléfonos","Cerrar"]
[null,":30",null,null,"Seguridad","Guía","Atención al cliente",null,"Teléfonos","Cerrar"]
[null,":45",null,null,"Seguridad","Pausa","Atención al cliente",null,"Teléfonos","Pausa"]
[null,"7:00",{"$nulls":3},"Guía",null,null,"Teléfonos","Cerrar"]
[null,":15",{"$nulls":3},"Guía",null,null,"Teléfonos","Cerrar"]
[null,":30",{"$nulls":3},"Guía",{"$nulls":3},"Cerrar"]
[null,":45",{"$nulls":3},"Guía",{"$nulls":3},"Cerrar"]
[null,"8:00",{"$nulls":3},"Guía",{"$nulls":3},"Cerrar"]
[null,":15",{"$nulls":3},"Guía"]
[null,":30",{"$nulls":3},"Guía"]
[null,":45"]
[null,"9:00"]

{"sheet":"Configuración","index":1,"n_rows":26,"n_cols":7,"rows_kept":26}
[null,"Configuración"]
[]
[]
[null,"INTRODUCCIÓN DE INCREMENTOS POR HORA",4]
[]
[]
[]
[]
[]
[null,"Empleados",null,"Puesto/Tiempo de descanso","Color","Pagado","Día entero"]
[null,"Carvallo, C.",null,"Comida",1,false,false]
[null,"Cuesta, M.",null,"Pausa",1,false,false]
[null,"Delgado, A.",null,"Fuera",1,false,true]
[null,"Estrada, M.",null,"Enfermo",1,false,true]
[null,"García, C.",null,"Día personal",1,true,true]
[null,"Grilo, C.",null,"Vacaciones",1,true,true]
[null,"Isla, J.",null,"Recepción",2,true,false]
[null,"Junca, D.",null,"Cajero",3,true,false]
[{"$nulls":3},"Supervisor",4,true,false]
[{"$nulls":3},"Guía",5,true,false]
[{"$nulls":3},"Atención al cliente",6,true,false]
[{"$nulls":3},"Teléfonos",7,true,false]
[{"$nulls":3},"Seguridad",8,true,false]
[{"$nulls":3},"Conserje",9,true,false]
[{"$nulls":3},"Contabilidad",10,true,false]
[{"$nulls":3},"Cerrar",11,true,false]